fUSD/lending_fUSD_20260605
["ID","MTS","AMOUNT","RATE_DAILY","PERIOD"]
[424140846,1780608654000,-1108.7381655,0.00018988,2]
[424140829,1780608654000,-151.0,0.00018574,2]
[424140842,1780608654000,-1400.0,0.000189,6]
[424140866,1780608654000,-1108.7381655,0.00019258,2]
[424140828,1780608654000,-500.886936,0.00018574,2]
[424140818,1780608654000,-548.48,0.00018573,2]
[424140820,1780608654000,-2500000.0,0.00018574,2]
[424140824,1780608654000,-308.365861,0.00018574,2]
[424140826,1780608654000,-500.886936,0.00018574,2]
[424140825,1780608654000,-500.886936,0.00018574,2]
[424140821,1780608654000,-308.365861,0.00018574,2]
[424140823,1780608654000,-308.365861,0.00018574,2]
[424140822,1780608654000,-308.365861,0.00018574,2]
[424140819,1780608654000,-150.0,0.00018573,2]
[424140843,1780608654000,-1108.7381655,0.00018933,2]
[424140827,1780608654000,-500.886936,0.00018574,2]
[424140835,1780608654000,-1108.7381655,0.00018669,2]
[424140837,1780608654000,-1108.7381655,0.00018727,2]
[424140834,1780608654000,-1108.7381655,0.00018661,2]
[424140833,1780608654000,-281.371497,0.00018604,2]
[424140832,1780608654000,-150.0,0.00018593,2]
[424140838,1780608654000,-1108.7381655,0.00018735,2]
[424140839,1780608654000,-1108.7381655,0.00018788,2]
[424140836,1780608654000,-1108.7381655,0.00018693,2]
[424140840,1780608654000,-1108.7381655,0.00018791,2]
[424140841,1780608654000,-1108.7381655,0.00018793,2]
[424140830,1780608654000,-151.0,0.00018574,2]
[424140831,1780608654000,-150.0,0.00018593,2]
[424140875,1780608654000,-1108.7381655,0.00019441,2]
[424140872,1780608654000,-548.48,0.00019348,2]
[424140868,1780608654000,-1108.7381655,0.00019276,2]
[424140903,1780608654000,-151.0,0.0001985,2]
[424140902,1780608654000,-151.0,0.0001985,2]
[424140907,1780608654000,-150.0,0.00019898,2]
[424140911,1780608654000,-398.553973,0.0002,2]
[424140904,1780608654000,-151.0,0.0001985,2]
[424140906,1780608654000,-151.0,0.0001985,2]
[424140908,1780608654000,-162.0,0.00019898,2]
[424140905,1780608654000,-151.0,0.0001985,2]
[424140913,1780608654000,-25968.72912368,0.0002,2]
[424140910,1780608654000,-200.0,0.000199,7]
[424140909,1780608654000,-2015.96190773,0.000199,2]
[424140895,1780608654000,-151.0,0.0001985,2]
[424140912,1780608654000,-1494.14455338,0.0002,5]
[424140916,1780608654000,-1000.0,0.0002,90]
[424140914,1780608654000,-26824.11548599,0.0002,2]
[424140918,1780608654000,-8000.0,0.0002,2]
[424140920,1780608654000,-5891.33686923,0.0002,2]
[424140919,1780608654000,-13117.27231679,0.0002,2]
[424140921,1780608654000,-2684.05,0.0002,2]
[424140915,1780608654000,-9019.0890332,0.0002,2]
[424140922,1780608654000,-2015.96190773,0.000201,2]
[424140925,1780608654000,-548.48,0.0002028,2]
[424140877,1780608654000,-1108.7381655,0.0001951,2]
[424140924,1780608654000,-151.0,0.00020278,2]
[424140917,1780608654000,-52425.61507123,0.0002,2]
[424140894,1780608654000,-151.0,0.0001985,2]
[424140923,1780608654000,-197.98931216,0.00020271,2]
[424140898,1780608654000,-151.0,0.0001985,2]
[424140896,1780608654000,-151.0,0.0001985,2]
[424140874,1780608654000,-1108.7381655,0.00019375,2]
[424140870,1780608654000,-1108.7381655,0.00019277,2]
[424140873,1780608654000,-673.42,0.00019349,2]
[424140878,1780608654000,-1108.7381655,0.00019535,2]
[424140879,1780608654000,-2000.0,0.00019559,2]
[424140882,1780608654000,-185.0,0.00019653,2]
[424140871,1780608654000,-2015.96190773,0.000193,2]
[424140884,1780608654000,-1108.7381655,0.00019673,2]
[424140880,1780608654000,-1108.7381655,0.00019585,2]
[424140881,1780608654000,-1108.7381655,0.0001963,2]
[424140885,1780608654000,-2015.96190773,0.000197,2]
[424140883,1780608654000,-1108.7381655,0.00019664,2]
[424140887,1780608654000,-1108.7381655,0.00019757,2]
[424140888,1780608654000,-151.0,0.0001985,2]
[424140886,1780608654000,-1108.7381655,0.00019728,2]
[424140891,1780608654000,-151.0,0.0001985,2]
[424140899,1780608654000,-151.0,0.0001985,2]
[424140900,1780608654000,-151.0,0.0001985,2]
[424140901,1780608654000,-151.0,0.0001985,2]
[424140890,1780608654000,-151.0,0.0001985,2]
[424140893,1780608654000,-151.0,0.0001985,2]
[424140897,1780608654000,-151.0,0.0001985,2]
[424140889,1780608654000,-151.0,0.0001985,2]
[424140892,1780608654000,-151.0,0.0001985,2]
[424140959,1780608655000,-1211.63839179,0.00021,2]
[424140958,1780608655000,-398.553973,0.00021,2]
[424140964,1780608655000,-4774.37,0.0002137,2]
[424140956,1780608655000,-15000.0,0.00021,2]
[424140961,1780608655000,-500.0,0.00021161,2]
[424140955,1780608655000,-6111.0,0.00021,2]
[424140957,1780608655000,-6111.0,0.00021,2]
[424140954,1780608655000,-15000.0,0.00021,2]
[424140962,1780608655000,-526.48200856,0.00021161,2]
[424140963,1780608655000,-18370.83,0.00021273,2]
[424140976,1780608655000,-960.84,0.00022466,2]
[424140960,1780608655000,-199.97418508,0.00021,2]
[424140967,1780608655000,-2684.05,0.00021707,2]
[424140977,1780608655000,-289.65,0.00022466,2]
[424140966,1780608655000,-1880.22,0.000216,2]
[424140971,1780608655000,-314.2,0.00022353,2]
[424140972,1780608655000,-158.38,0.00022426,2]
[424140969,1780608655000,-5000.0,0.00021918,2]
[424140970,1780608655000,-398.553973,0.00022,2]
[424140968,1780608655000,-3397.82563488,0.00021784,2]
[424140975,1780608655000,-158.38,0.00022426,2]
[424140953,1780608655000,-26216.46038584,0.000209,30]
[424140965,1780608655000,-58462.28141324,0.000215,2]
[424140947,1780608655000,-314.2,0.00020381,2]
[424140937,1780608655000,-308.365861,0.00020281,2]
[424140946,1780608655000,-2015.96190773,0.000203,2]
[424140974,1780608655000,-158.38,0.00022426,2]
[424140926,1780608655000,-548.48,0.0002028,2]
[424140929,1780608655000,-548.48,0.0002028,2]
[424140927,1780608655000,-548.48,0.0002028,2]
[424140931,1780608655000,-548.48,0.0002028,2]
[424140930,1780608655000,-548.48,0.0002028,2]
[424140939,1780608655000,-500.886936,0.00020281,2]
[424140938,1780608655000,-151.0,0.00020281,2]
[424140928,1780608655000,-548.48,0.0002028,2]
[424140932,1780608655000,-548.48,0.0002028,2]
[424140935,1780608655000,-308.365861,0.00020281,2]
[424140948,1780608655000,-164.08,0.00020443,2]
[424140933,1780608655000,-548.59344151,0.0002028,2]
[424140934,1780608655000,-308.365861,0.00020281,2]
[424140952,1780608655000,-23011.3161902,0.000207,2]
[424140951,1780608655000,-2015.96190773,0.000207,2]
[424140944,1780608655000,-1500000.0,0.00020281,2]
[424140949,1780608655000,-2015.96190773,0.000205,2]
[424140943,1780608655000,-151.0,0.00020281,2]
[424140950,1780608655000,-21421.6,0.00020548,2]
[424140941,1780608655000,-500.886936,0.00020281,2]
[424140940,1780608655000,-500.886936,0.00020281,2]
[424140945,1780608655000,-153.36591786,0.00020281,2]
[424140942,1780608655000,-500.886936,0.00020281,2]
[424140936,1780608655000,-308.365861,0.00020281,2]
[424140973,1780608655000,-158.38,0.00022426,2]
[424140981,1780608655000,-1368.0,0.00022747,2]
[424140988,1780608655000,-161.45189402,0.00023598,3]
[424141009,1780608655000,-3092.24521926,0.00025,2]
[424141010,1780608655000,-7243.68629212,0.00025,2]
[424141008,1780608655000,-620.59546495,0.00025,2]
[424141011,1780608655000,-2235.82725069,0.00025,2]
[424141012,1780608655000,-170.0099826,0.00025,2]
[424141013,1780608655000,-628.36340733,0.00025,5]
[424141014,1780608655000,-858050.26235381,0.00025,2]
[424141016,1780608655000,-308.365861,0.00025,2]
[424141015,1780608655000,-308.365861,0.00025,2]
[424141021,1780608655000,-500.886936,0.00025,2]
[424141007,1780608655000,-540.0,0.00025,2]
[424141019,1780608655000,-151.0,0.00025,2]
[424141020,1780608655000,-2000.0,0.00025,3]
[424141018,1780608655000,-308.365861,0.00025,2]
[424141022,1780608655000,-500.886936,0.00025,2]
[424141023,1780608655000,-500.886936,0.00025,2]
[424141024,1780608655000,-500.886936,0.00025,2]
[424141027,1780608655000,-2684.05,0.00025121,7]
[424141029,1780608655000,-500.0,0.00025122,2]
[424141025,1780608655000,-151.0,0.00025,2]
[424141030,1780608655000,-500.0,0.00025122,2]
[424141028,1780608655000,-500.0,0.00025122,2]
[424141017,1780608655000,-308.365861,0.00025,2]
[424141005,1780608655000,-1813.61404091,0.00025,2]
[424141026,1780608655000,-5997.7219,0.00025023,2]
[424141006,1780608655000,-2000.0,0.00025,2]
[424141004,1780608655000,-210.82881074,0.00025,2]
[424140983,1780608655000,-324.0,0.00023,2]
[424140982,1780608655000,-1369.0,0.00022747,2]
[424140989,1780608655000,-398.553973,0.00024,2]
[424140986,1780608655000,-2684.05,0.00023414,7]
[424140980,1780608655000,-402.0,0.00022744,2]
[424140987,1780608655000,-223.16,0.0002343,2]
[424140978,1780608655000,-276.71,0.00022466,2]
[424140985,1780608655000,-187.59,0.00023288,2]
[424140990,1780608655000,-253.44,0.0002411,2]
[424140984,1780608655000,-398.553973,0.00023,2]
[424140992,1780608655000,-11419.82,0.00024174,2]
[424140979,1780608655000,-36096.85512917,0.000225,2]
[424140991,1780608655000,-242.12,0.0002411,2]
[424140998,1780608655000,-186.72,0.00024658,2]
[424141000,1780608655000,-186.87,0.00024946,7]
[424141001,1780608655000,-186.72,0.00024946,7]
[424140999,1780608655000,-186.66,0.00024658,2]
[424141002,1780608655000,-186.66,0.00024946,7]
[424140995,1780608655000,-3397.82563488,0.00024533,2]
[424140997,1780608655000,-1000.0,0.00024658,2]
[424140994,1780608655000,-314.2,0.00024324,2]
[424140993,1780608655000,-3762.82462446,0.0002421,2]
[424140996,1780608655000,-172.18528025,0.0002465,2]
[424141003,1780608655000,-1131.84142249,0.00025,2]
[424141051,1780608656000,-229.72,0.00027,14]
[424141064,1780608656000,-151.0,0.00027397,2]
[424141054,1780608656000,-530.0,0.00027,2]
[424141056,1780608656000,-3397.82563488,0.00027281,2]
[424141058,1780608656000,-8266.62594141,0.0002739,2]
[424141059,1780608656000,-1500.0,0.00027397,2]
[424141062,1780608656000,-151.0,0.00027397,2]
[424141061,1780608656000,-151.0,0.00027397,2]
[424141060,1780608656000,-300.0,0.00027397,2]
[424141066,1780608656000,-151.0,0.00027397,2]
[424141067,1780608656000,-1000.0,0.00027397,20]
[424141065,1780608656000,-151.0,0.00027397,2]
[424141053,1780608656000,-1052.74283159,0.00027,2]
[424141068,1780608656000,-334.369099,0.00027397,2]
[424141070,1780608656000,-334.369099,0.00027397,2]
[424141071,1780608656000,-334.369099,0.00027397,2]
[424141069,1780608656000,-334.369099,0.00027397,2]
[424141072,1780608656000,-334.369099,0.00027397,2]
[424141063,1780608656000,-151.0,0.00027397,2]
[424141057,1780608656000,-4184.24891676,0.0002739,2]
[424141048,1780608656000,-1357.0,0.00026441,2]
[424141052,1780608656000,-250.0,0.00027,2]
[424141078,1780608656000,-334.369099,0.00027397,2]
[424141031,1780608656000,-200.0,0.00025124,2]
[424141032,1780608656000,-33250.5141,0.00025686,2]
[424141034,1780608656000,-11419.82,0.00025786,2]
[424141035,1780608656000,-18370.83,0.00025786,2]
[424141033,1780608656000,-2000.0,0.00025686,2]
[424141036,1780608656000,-200.0,0.000259,9]
[424141037,1780608656000,-610.7929362,0.0002599,2]
[424141040,1780608656000,-181.03,0.00026027,7]
[424141038,1780608656000,-4597.67740861,0.00026,2]
[424141041,1780608656000,-172.94,0.00026027,7]
[424141044,1780608656000,-27950.98067662,0.000264,2]
[424141046,1780608656000,-525.0,0.00026441,2]
[424141045,1780608656000,-1273.0,0.00026441,2]
[424141043,1780608656000,-675.79510841,0.00026399,2]
[424141042,1780608656000,-314.2,0.00026296,2]
[424141047,1780608656000,-1226.0,0.00026441,2]
[424141049,1780608656000,-150.0,0.00026765,21]
[424141050,1780608656000,-2684.05,0.00026828,7]
[424141055,1780608656000,-673.42,0.00027088,2]
[424141039,1780608656000,-220.0515582,0.00026,2]
[424141074,1780608656000,-334.369099,0.00027397,2]
[424141073,1780608656000,-151.0,0.00027397,2]
[424141098,1780608656000,-999.06820793,0.000274,2]
[424141103,1780608656000,-197.6824933,0.00027803,2]
[424141102,1780608656000,-152.63409792,0.00027803,2]
[424141104,1780608656000,-187.86978149,0.00027803,2]
[424141108,1780608656000,-232.83018654,0.00028,30]
[424141105,1780608656000,-150.0,0.0002784,2]
[424141107,1780608656000,-51742.53131151,0.00028,2]
[424141109,1780608656000,-710.85248796,0.00028,60]
[424141106,1780608656000,-200.0,0.00027849,2]
[424141110,1780608656000,-325.0,0.00028,2]
[424141112,1780608656000,-314.2,0.00028267,2]
[424141113,1780608656000,-2684.05,0.00028535,7]
[424141117,1780608656000,-155.6,0.0002863,2]
[424141114,1780608656000,-986.22,0.0002863,30]
[424141115,1780608656000,-406.28,0.0002863,30]
[424141116,1780608656000,-415.26,0.0002863,30]
[424141118,1780608656000,-155.55,0.0002863,2]
[424141119,1780608656000,-273.34,0.0002863,30]
[424141075,1780608656000,-151.0,0.00027397,2]
[424141100,1780608656000,-500.0,0.000275,7]
[424141101,1780608656000,-199.42487103,0.00027803,2]
[424141111,1780608656000,-961.34218118,0.00028,5]
[424141095,1780608656000,-7959.64,0.00027397,10]
[424141077,1780608656000,-334.369099,0.00027397,2]
[424141097,1780608656000,-159.88,0.000274,14]
[424141079,1780608656000,-334.369099,0.00027397,2]
[424141076,1780608656000,-151.0,0.00027397,2]
[424141080,1780608656000,-334.369099,0.00027397,2]
[424141081,1780608656000,-334.369099,0.00027397,2]
[424141086,1780608656000,-449.804071,0.00027397,2]
[424141084,1780608656000,-449.804071,0.00027397,2]
[424141087,1780608656000,-449.804071,0.00027397,2]
[424141085,1780608656000,-449.804071,0.00027397,2]
[424141082,1780608656000,-334.369099,0.00027397,2]
[424141083,1780608656000,-449.804071,0.00027397,2]
[424141092,1780608656000,-449.804071,0.00027397,2]
[424141091,1780608656000,-449.804071,0.00027397,2]
[424141089,1780608656000,-449.804071,0.00027397,2]
[424141088,1780608656000,-449.804071,0.00027397,2]
[424141090,1780608656000,-449.804071,0.00027397,2]
[424141094,1780608656000,-449.804071,0.00027397,2]
[424141093,1780608656000,-449.804071,0.00027397,2]
[424141096,1780608656000,-13723.57,0.00027397,10]
[424141099,1780608656000,-204.71501492,0.000275,2]
[424141155,1780608657000,-406.28,0.00028964,2]
[424141154,1780608657000,-986.22,0.00028964,2]
[424141160,1780608657000,-155.55,0.00028991,2]
[424141161,1780608657000,-324.0,0.00029,7]
[424141150,1780608657000,-200.0,0.00028918,2]
[424141170,1780608657000,-155.55,0.00029072,30]
[424141145,1780608657000,-200.0,0.00028918,2]
[424141149,1780608657000,-200.0,0.00028918,2]
[424141152,1780608657000,-155.6,0.00028951,30]
[424141158,1780608657000,-273.57,0.00028964,2]
[424141156,1780608657000,-415.26,0.00028964,2]
[424141167,1780608657000,-155.6,0.00029031,7]
[424141151,1780608657000,-257.0,0.00028918,2]
[424141162,1780608657000,-200.17,0.00029,2]
[424141164,1780608657000,-219.68020016,0.00029,2]
[424141168,1780608657000,-155.55,0.00029031,7]
[424141174,1780608657000,-291.0,0.00029096,2]
[424141166,1780608657000,-231.33,0.00029,2]
[424141165,1780608657000,-511.16350929,0.00029,2]
[424141163,1780608657000,-629.60355887,0.00029,2]
[424141173,1780608657000,-150.0,0.00029096,2]
[424141169,1780608657000,-155.6,0.00029072,30]
[424141148,1780608657000,-200.0,0.00028918,2]
[424141153,1780608657000,-155.55,0.00028951,30]
[424141147,1780608657000,-200.0,0.00028918,2]
[424141130,1780608657000,-155.55,0.0002879,7]
[424141144,1780608657000,-200.0,0.00028918,2]
[424141120,1780608657000,-273.57,0.0002863,30]
[424141121,1780608657000,-160.18,0.00028634,2]
[424141122,1780608657000,-155.6,0.0002867,7]
[424141123,1780608657000,-155.55,0.0002867,7]
[424141125,1780608657000,-155.6,0.0002871,30]
[424141129,1780608657000,-155.6,0.0002879,7]
[424141124,1780608657000,-159.88,0.000287,14]
[424141127,1780608657000,-155.6,0.0002875,2]
[424141126,1780608657000,-155.55,0.0002871,30]
[424141128,1780608657000,-155.55,0.0002875,2]
[424141131,1780608657000,-986.22,0.00028797,7]
[424141133,1780608657000,-415.26,0.00028797,7]
[424141134,1780608657000,-273.34,0.00028797,7]
[424141137,1780608657000,-155.6,0.0002883,30]
[424141139,1780608657000,-155.6,0.00028871,2]
[424141136,1780608657000,-1248.07,0.00028818,2]
[424141132,1780608657000,-406.28,0.00028797,7]
[424141135,1780608657000,-273.57,0.00028797,7]
[424141138,1780608657000,-155.55,0.0002883,30]
[424141140,1780608657000,-155.55,0.00028871,2]
[424141142,1780608657000,-155.55,0.00028911,7]
[424141141,1780608657000,-155.6,0.00028911,7]
[424141143,1780608657000,-200.0,0.00028918,2]
[424141146,1780608657000,-200.0,0.00028918,2]
[424141172,1780608657000,-150.0,0.00029096,2]
[424141159,1780608657000,-155.6,0.00028991,2]
[424141175,1780608657000,-150.0,0.00029102,2]
[424141201,1780608657000,-406.28,0.00029299,7]
[424141202,1780608657000,-415.26,0.00029299,7]
[424141206,1780608657000,-525.0,0.00029441,2]
[424141209,1780608657000,-986.22,0.00029467,2]
[424141208,1780608657000,-1357.0,0.00029441,2]
[424141207,1780608657000,-1226.0,0.00029441,2]
[424141211,1780608657000,-415.26,0.00029467,2]
[424141210,1780608657000,-406.28,0.00029467,2]
[424141213,1780608657000,-986.22,0.00029634,30]
[424141214,1780608657000,-248.07,0.00029637,2]
[424141212,1780608657000,-150.0,0.00029534,2]
[424141217,1780608657000,-150.0,0.00029863,2]
[424141220,1780608657000,-457.90229376,0.00029985,2]
[424141215,1780608657000,-200.0,0.00029676,2]
[424141219,1780608657000,-986.22,0.00029969,2]
[424141216,1780608657000,-986.22,0.00029802,7]
[424141218,1780608657000,-80371.19771535,0.000299,2]
[424141222,1780608657000,-283.86224781,0.00029985,2]
[424141221,1780608657000,-154.90191855,0.00029985,2]
[424141227,1780608657000,-196.30224557,0.00029986,2]
[424141225,1780608657000,-155.12041061,0.00029985,2]
[424141223,1780608657000,-593.04747989,0.00029985,2]
[424141226,1780608657000,-215.88821438,0.00029985,2]
[424141224,1780608657000,-563.60934448,0.00029985,2]
[424141171,1780608657000,-150.0,0.00029096,2]
[424141204,1780608657000,-273.57,0.00029299,7]
[424141203,1780608657000,-273.34,0.00029299,7]
[424141157,1780608657000,-273.34,0.00028964,2]
[424141199,1780608657000,-155.56,0.00029232,2]
[424141205,1780608657000,-1273.0,0.00029441,2]
[424141186,1780608657000,-395.36498659,0.00029112,2]
[424141184,1780608657000,-155.55,0.00029112,2]
[424141177,1780608657000,-150.0,0.00029102,2]
[424141176,1780608657000,-150.0,0.00029102,2]
[424141185,1780608657000,-305.26819584,0.00029112,2]
[424141178,1780608657000,-150.0,0.00029102,2]
[424141183,1780608657000,-155.6,0.00029112,2]
[424141182,1780608657000,-201.0,0.00029102,2]
[424141180,1780608657000,-150.0,0.00029102,2]
[424141179,1780608657000,-150.0,0.00029102,2]
[424141188,1780608657000,-398.84974206,0.00029113,2]
[424141181,1780608657000,-150.0,0.00029102,2]
[424141192,1780608657000,-273.34,0.00029132,30]
[424141190,1780608657000,-406.28,0.00029132,30]
[424141196,1780608657000,-155.6,0.00029192,30]
[424141193,1780608657000,-273.57,0.00029132,30]
[424141189,1780608657000,-986.22,0.00029132,30]
[424141187,1780608657000,-375.73956299,0.00029112,2]
[424141200,1780608657000,-986.22,0.00029299,7]
[424141195,1780608657000,-155.55,0.00029152,7]
[424141194,1780608657000,-155.6,0.00029152,7]
[424141191,1780608657000,-415.26,0.00029132,30]
[424141197,1780608657000,-155.55,0.00029192,30]
[424141198,1780608657000,-155.63,0.00029232,2]
[424141239,1780608658000,-166.0833877,0.0003,2]
[424141230,1780608658000,-99912.57149913,0.0003,5]
[424141229,1780608658000,-241.52866936,0.0002999,2]
[424141231,1780608658000,-1941.91000824,0.0003,3]
[424141228,1780608658000,-598.2746131,0.00029986,2]
[424141236,1780608658000,-1851.88994905,0.0003,2]
[424141232,1780608658000,-20835.0233457,0.0003,2]
[424141237,1780608658000,-897.93931998,0.0003,10]
[424141242,1780608658000,-3397.82563488,0.0003003,2]
[424141235,1780608658000,-1124.73179695,0.0003,2]
[424141233,1780608658000,-2000.0,0.0003,3]
[424141234,1780608658000,-11180.83894307,0.0003,2]
[424141238,1780608658000,-1000.0,0.0003,2]
[424141241,1780608658000,-9725.71753075,0.0003,14]
[424141251,1780608658000,-824.0,0.0003013,7]
[424141249,1780608658000,-302.47256394,0.0003013,2]
[424141246,1780608658000,-14120.52543672,0.0003013,2]
[424141248,1780608658000,-205.52823685,0.0003013,2]
[424141247,1780608658000,-646.06446933,0.0003013,2]
[424141243,1780608658000,-1000.0,0.00030094,5]
[424141244,1780608658000,-324.0,0.000301,7]
[424141250,1780608658000,-872144.07774341,0.0003013,7]
[424141240,1780608658000,-4661.38053202,0.0003,24]
[424141245,1780608658000,-1094.03985018,0.0003013,2]
[424141273,1780608659000,-449.804071,0.0003013,7]
[424141269,1780608659000,-334.369099,0.0003013,7]
[424141268,1780608659000,-334.369099,0.0003013,7]
[424141270,1780608659000,-334.369099,0.0003013,7]
[424141277,1780608659000,-1843.24,0.00030137,120]
[424141272,1780608659000,-449.804071,0.0003013,7]
[424141281,1780608659000,-15814.82281071,0.000302,2]
[424141274,1780608659000,-449.804071,0.0003013,7]
[424141275,1780608659000,-986.29,0.00030136,30]
[424141271,1780608659000,-449.804071,0.0003013,7]
[424141280,1780608659000,-169.55,0.000302,2]
[424141286,1780608659000,-193.23136191,0.00030545,2]
[424141285,1780608659000,-171.69200182,0.00030545,2]
[424141276,1780608659000,-162.16762798,0.00030137,2]
[424141279,1780608659000,-2684.05,0.00030137,7]
[424141263,1780608659000,-500.886936,0.0003013,7]
[424141262,1780608659000,-500.886936,0.0003013,7]
[424141289,1780608659000,-193.10085023,0.00030567,2]
[424141252,1780608659000,-151.0,0.0001985,2]
[424141254,1780608659000,-200.0,0.00029598,2]
[424141256,1780608659000,-1917.7331533,0.0003013,2]
[424141253,1780608659000,-200.0,0.00028823,2]
[424141255,1780608659000,-2191623.10722627,0.0003013,7]
[424141265,1780608659000,-500.886936,0.0003013,7]
[424141266,1780608659000,-151.0,0.0003013,7]
[424141259,1780608659000,-308.365861,0.0003013,7]
[424141257,1780608659000,-308.365861,0.0003013,7]
[424141258,1780608659000,-308.365861,0.0003013,7]
[424141260,1780608659000,-308.365861,0.0003013,7]
[424141261,1780608659000,-151.0,0.0003013,7]
[424141264,1780608659000,-500.886936,0.0003013,7]
[424141267,1780608659000,-334.369099,0.0003013,7]
[424141293,1780608659000,-309.80383711,0.00030567,2]
[424141278,1780608659000,-500.0,0.00030137,3]
[424141283,1780608659000,-178.9,0.00030411,120]
[424141305,1780608659000,-169.60577197,0.00030567,2]
[424141314,1780608659000,-797.69948413,0.00030568,2]
[424141306,1780608659000,-175.96415089,0.00030568,2]
[424141308,1780608659000,-346.6301605,0.00030568,2]
[424141307,1780608659000,-275.50518613,0.00030568,2]
[424141310,1780608659000,-203.99473517,0.00030568,2]
[424141304,1780608659000,-183.55259497,0.00030567,2]
[424141312,1780608659000,-392.60449113,0.00030568,2]
[424141311,1780608659000,-365.22083335,0.00030568,2]
[424141315,1780608659000,-189.76242315,0.00030568,2]
[424141318,1780608659000,-2976.0,0.00030989,5]
[424141319,1780608659000,-689.16,0.00031,30]
[424141316,1780608659000,-1638.39671014,0.0003084,2]
[424141282,1780608659000,-314.2,0.00030239,2]
[424141309,1780608659000,-177.8017293,0.00030568,2]
[424141313,1780608659000,-206.39875363,0.00030568,2]
[424141317,1780608659000,-2259.0,0.00030989,5]
[424141297,1780608659000,-426.43353248,0.00030567,2]
[424141302,1780608659000,-431.77642877,0.00030567,2]
[424141291,1780608659000,-610.53639168,0.00030567,2]
[424141287,1780608659000,-156.75826558,0.00030545,2]
[424141292,1780608659000,-256.55692835,0.00030567,2]
[424141290,1780608659000,-324.33525596,0.00030567,2]
[424141295,1780608659000,-567.72449561,0.00030567,2]
[424141284,1780608659000,-209.6782459,0.00030545,2]
[424141299,1780608659000,-160.58890264,0.00030567,2]
[424141296,1780608659000,-790.72997319,0.00030567,2]
[424141294,1780608659000,-308.63930696,0.00030567,2]
[424141301,1780608659000,-159.60606328,0.00030567,2]
[424141288,1780608659000,-261.46914973,0.00030545,2]
[424141303,1780608659000,-436.6,0.00030567,2]
[424141298,1780608659000,-751.47912598,0.00030567,2]
[424141300,1780608659000,-277.67176727,0.00030567,2]
[424141352,1780608660000,-500.0,0.00032876,2]
[424141365,1780608660000,-500.0,0.00033896,120]
[424141363,1780608660000,-2684.05,0.00033657,30]
[424141364,1780608660000,-500.0,0.00033896,120]
[424141362,1780608660000,-1068.43868544,0.00033332,2]
[424141354,1780608660000,-219.21400711,0.00032876,2]
[424141355,1780608660000,-500.0,0.00032876,2]
[424141357,1780608660000,-500.0,0.00032876,2]
[424141360,1780608660000,-279.4,0.000332,11]
[424141359,1780608660000,-258.54877676,0.00033,120]
[424141356,1780608660000,-487.92824546,0.00032876,2]
[424141358,1780608660000,-151.0,0.00032877,7]
[424141353,1780608660000,-321.12809675,0.00032876,2]
[424141373,1780608660000,-875.51,0.0003429,2]
[424141370,1780608660000,-625.85,0.00034224,2]
[424141376,1780608660000,-1500.0,0.00034795,2]
[424141369,1780608660000,-150.0,0.0003419,2]
[424141377,1780608660000,-2530.66729313,0.00034795,2]
[424141366,1780608660000,-941.69284446,0.00034,2]
[424141368,1780608660000,-314.2,0.00034182,7]
[424141374,1780608660000,-2000.0,0.00034384,36]
[424141372,1780608660000,-500.0,0.0003429,2]